Cogmind - Beta 13 @@@ ROGUE MODE // 2024.04.29 @ 20:53:22 Player: Some Pennies Result: Destroyed by PL-HXM(R) with Subdweller Machine Gun Performance ------------- Evolutions (0) 0 Regions Visited (2) 400 Robots Destroyed (46) 230 Value Destroyed (790) 790 Prototype IDs (2) 40 Alien Tech Used (0) 0 Bonus (-44) -44 TOTAL SCORE: 1416 Bonus ------- Friendly Fire -44 Cogmind --------- Core Integrity 0/250 Matter 287/300 Energy 198/250 System Corruption 0% Temperature Cool (28) Movement Core (500) Ox9 Location -10/Subcaves Parts ------- > --- POWER (1) -------- Ion Engine > --- PROPULSION (2) --- (None) > --- UTILITY (2) ------ Large Storage Unit Core Shielding > --- WEAPON (2) ------- Beam Cannon > --- INVENTORY (15) --- Ion Engine Ion Engine Light Ion Engine Heat Sink Structural Scanner Signal Interpreter Improved Terrain Scanner Seismic Detector Hacking Suite Hacking Suite Datajack Mining Laser Peak State ------------ > --- POWER ------------ Light Ion Engine > --- PROPULSION ------- Light Treads Light Treads > --- UTILITY ---------- Small Storage Unit Improved Terrain Scanner > --- WEAPON ----------- EM Pulse Gun Assault Rifle > --- INVENTORY -------- Light Ion Engine Light Assault Rifle [Rating: 9] Favorites ----------- Power Ion Engine Engine Ion Engine Propulsion Light Treads Treads Light Treads Utility Large Storage Unit Device Improved Terrain Scanner Storage Large Storage Unit Protection Light Armor Plating Weapon Light Assault Rifle Energy Gun EM Pulse Gun Energy Cannon Beam Cannon Ballistic Gun Light Assault Rifle Launcher Grenade Launcher Special Weapon Mining Laser Build | -11 -10 -10 ------- Run | Yrd Mat Sub Slots Evolved . | . . . Power . | . . . Propulsion . | . . . Utility . | . . . Weapon . | . . . Parts Attached 23 | 9 8 6 Power 3 | 1 2 . Engine 3 | 1 2 . Core . | . . . Reactor . | . . . Propulsion 3 | 2 1 . Treads 3 | 2 1 . Leg . | . . . Wheel . | . . . Hover . | . . . Flight . | . . . Utility 8 | 2 4 2 Device 2 | 1 1 . Storage 3 | 1 2 . Processor . | . . . Hackware . | . . . Protection 3 | . 1 2 Artifact . | . . . Weapon 9 | 4 1 4 Energy Gun 3 | 1 1 1 Energy Cannon 1 | . . 1 Ballistic Gun 3 | 3 . . Ballistic Cannon . | . . . Launcher 1 | . . 1 Special Weapon 1 | . . 1 Impact Weapon . | . . . Slashing Weapon . | . . . Piercing Weapon . | . . . Special Melee Weapon . | . . . Unidentified Prototypes . | . . . Parts Lost 7 | . 1 6 Power . | . . . Propulsion 2 | . . 2 Utility 1 | . . 1 Weapon 4 | . 1 3 Highest Loss Streak 6 | . 1 6 To Critical Strikes . | . . . Average Slot Usage (%) 99 | . 100 96 Engine 14 | . 14 14 Treads 27 | . 28 26 Device 5 | . 4 12 Storage 14 | . 14 14 Protection 8 | . 9 1 Energy Gun 6 | . 5 11 Ballistic Gun 21 | . 22 12 Naked Turns . | . . . Heaviest Build 32 | 13 31 32 Greatest Support 40 | 40 40 40 Greatest Overweight (x) . | . . . Average Overweight (x) . | . . . Largest Inventory Capacity 15 | 8 15 15 Average Capacity 12 | 7 13 15 Most Carried 15 | 5 15 15 Average Carried 10 | 3 11 14 Final Capacity 15 | 8 15 15 Final Carried 15 | 5 15 12 Class Distribution -------------------- 100% | Mutant Dominant Class ---------------- Mutant | -10/Materials Mutant | -10/Subcaves Resources | -11 -10 -10 ----------- Run | Yrd Mat Sub Matter Collected 867 | 406 421 40 Remotely . | . . . Salvage Created 1198 | 237 933 28 Parts 102 | 23 75 4 Haulers Intercepted 2 | . 2 . Recyclers Shooed 3 | 1 2 . Parts Field Recycled . | . . . Retrieved Matter . | . . . Parts Self-Destructed . | . . . Prevented . | . . . Kills | -11 -10 -10 ------- Run | Yrd Mat Sub Combat Hostiles Destroyed 21 | . 20 1 Guns 18 | . 18 . AOE 3 | . 2 1 Classes Destroyed 10 | 3 6 1 Worker 3 | 1 2 . Builder 5 | . 5 . Tunneler 9 | 9 . . Hauler 2 | . 2 . Recycler 1 | 1 . . Operator 2 | . 2 . Watcher 3 | . 3 . Swarmer 6 | . 6 . Grunt 14 | . 14 . Subdweller 1 | . . 1 Best Kill Streak 4 | 3 4 1 Combat Bots Only 4 | . 4 1 Max Kills in Single Turn 2 | 1 2 1 Gunslinging . | . . . Exploded 2 | . 2 1 Melee . | . . . Uniques/NPCs Destroyed . | . . . Combat | -11 -10 -10 -------- Run | Yrd Mat Sub Hostile Shots Fired 112 | . 78 34 Missed 27 | . 24 3 Damage Taken 1274 | 14 538 722 Core 263 | . 109 154 Absorbed by Shields . | . . . Redirected to Shielding 21 | . . 21 Core Remaining (%) 100 | 100 . . Volleys Fired 145 | 40 100 5 Largest 2 | 2 2 2 Hottest 100 | 40 60 100 Shots Fired 274 | 67 199 8 Gun 271 | 67 199 5 Cannon 1 | . . 1 Launcher 1 | . . 1 Special 1 | . . 1 Kinetic 247 | 62 182 3 Thermal 2 | . . 2 Explosive 1 | . . 1 Electromagnetic 24 | 5 17 2 Robot Hit Streak 12 | 9 12 3 Robot Miss Streak 4 | 3 4 2 Penetration Max . | . . . Secondary Targets 3 | . 3 . Max Gunslinging Chain 1 | . 1 . Shots Hit Robots 171 | 48 119 4 Core Hits 73 | 15 54 4 Critical Kills . | . . . Critical Parts Destroyed . | . . . Critical Strikes . | . . . Melee Attacks . | . . . Impact . | . . . Slashing . | . . . Piercing . | . . . Sneak Attacks . | . . . Combat Hostiles . | . . . Follow-up Attacks . | . . . Damage Inflicted 2598 | 635 1482 481 Guns 1889 | 509 1342 38 Cannons 17 | . . 17 Explosions 692 | 126 140 426 Melee . | . . . Ramming . | . . . Kinetic 1654 | 442 1189 23 Thermal 283 | 126 140 17 Explosive 426 | . . 426 Electromagnetic 235 | 67 153 15 Impact . | . . . Slashing . | . . . Piercing . | . . . Highest Corruption . | . . . Average Corruption . | . . . Corruption Purged . | . . . Corruption Blocked . | . . . Overload Shots . | . . . Overflow Damage 16 | 16 . . Projectiles . | . . . Explosions 16 | 16 . . Melee . | . . . Knockbacks . | . . . Impact . | . . . Kinetic . | . . . Secondary . | . . . Self-Inflicted Damage 48 | 14 . 34 Shots 2 | 1 . 1 Rammed . | . . . Targets Rammed . | . . . Kicked . | . . . Crushed . | . . . Highest Temperature 222 | 12 95 222 Average Temperature 18 | 12 14 114 Received Heat Transfer 595 | . 204 391 Siege Activations . | . . . Robots Corrupted . | . . . Combat Hostiles . | . . . Parts Fried . | . . . Impact Corruptions . | . . . Robots Melted . | . . . Combat Hostiles . | . . . Parts Melted . | . . . Heat Transferred 437 | 200 200 37 Parts Sabotaged . | . . . Parts Stolen . | . . . Parts Stripped . | . . . Power Chain Reactions 4 | 2 2 . Alert | -11 -10 -10 ------- Run | Yrd Mat Sub Peak Influence 212 | 55 212 . Initial . | . . . Average 86 | 23 98 . Maximum Alert Level 1 | . 1 . Low Security (%) 95 | 100 94 . Level 1 4 | . 5 . Level 2 . | . . . Level 3 . | . . . Level 4 . | . . . Level 5 . | . . . High Security . | . . . Max Security . | . . . Squads Dispatched 6 | . 6 . Investigation 4 | . 4 . Extermination . | . . . Reinforcement 2 | . 2 . Assault . | . . . Garrison . | . . . Intercept . | . . . Searches Triggered . | . . . Construction Impeded . | . . . Haulers Reinforced . | . . . Active Scanning Responses . | . . . Cargo Convoy Interrupts . | . . . Stealth | -11 -10 -10 --------- Run | Yrd Mat Sub Distress Signals 2 | . 2 . Communications Jammed . | . . . Distress Signals . | . . . Times Spotted 49 | . 34 15 Peak Tracking Total 11 | . 3 11 Tactical Retreats . | . . . Traps | -11 -10 -10 ------- Run | Yrd Mat Sub Traps Triggered 3 | . 3 . Indirectly . | . . . Trap Hack Attempts . | . . . Triggered . | . . . Disarmed . | . . . Reprogrammed . | . . . Reused . | . . . Traps Extracted . | . . . Installed . | . . . Triggered . | . . . Machines | -11 -10 -10 ---------- Run | Yrd Mat Sub Machines Disabled 2 | . 2 . Max in Single Turn 1 | . 1 . Machines Repaired . | . . . Machines Dismantled . | . . . Machines Sabotaged . | . . . Overloaded Fab Kills . | . . . Hacking | -11 -10 -10 --------- Run | Yrd Mat Sub Machines Accessed 6 | . 6 . Terminals 5 | . 5 . Fabricators . | . . . Repair Stations . | . . . Recycling Units 1 | . 1 . Scanalyzers . | . . . Garrison Access . | . . . Total Hacks 14 | . 14 . Successful 4 | . 4 . Failed 9 | . 9 . Catastrophic 3 | . 3 . Database Lockouts 1 | . 1 . Manual 12 | . 12 . Terminals 12 | . 12 . Fabricators . | . . . Repair Stations . | . . . Recycling Units 2 | . 2 . Scanalyzers . | . . . Garrison Access . | . . . Terminal Hacks 3 | . 3 . Robot Analysis 1 | . 1 . Prototype ID Bank 1 | . 1 . Zone Layout 1 | . 1 . Fabricator Hacks . | . . . Repair Station Hacks . | . . . Recycling Unit Hacks . | . . . Scanalyzer . | . . . Garrison Access Hacks . | . . . Unauthorized Hacks 1 | . 1 . Terminals . | . . . Fabricators . | . . . Repair Stations . | . . . Recycling Units 1 | . 1 . Mask 1 | . 1 . Scanalyzers . | . . . Garrison Access . | . . . Data Cores Recovered . | . . . Used . | . . . Hacking Detections 6 | . 6 . Full Trace Events 2 | . 2 . Feedback Events . | . . . Feedback Blocked . | . . . Robot Schematics Acquired . | . . . Robots Built . | . . . Authchips . | . . . Time . | . . . Total Robot Build Rating . | . . . Part Schematics Acquired . | . . . Parts Built . | . . . Authchips . | . . . Time . | . . . Total Part Build Rating . | . . . Parts Repaired . | . . . Time . | . . . Parts Recycled . | . . . Recycled Matter . | . . . Retrieved Matter . | . . . Retrieved Components . | . . . Parts Scanalyzed . | . . . Part Schematics Acquired . | . . . Parts Damaged . | . . . Bothacking | -11 -10 -10 ------------ Run | Yrd Mat Sub Used RIF Installer . | . . . Robots Hacked . | . . . Non-combat . | . . . Combat . | . . . Robot Hacks Applied . | . . . Relay Couplers Released . | . . . Fabnet Peak Effective % . | . . . Robots Rewired . | . . . Allies Hacked . | . . . Hacks Repelled . | . . . Allies | -11 -10 -10 -------- Run | Yrd Mat Sub Total Allies . | . . . Largest Group . | . . . Highest-Rated Group . | . . . Highest-Rated Ally . | . . . Total Orders . | . . . Ally Attacks . | . . . Total Damage . | . . . Kills . | . . . Allies Corrupted . | . . . Allies Melted . | . . . Intel | -11 -10 -10 ------- Run | Yrd Mat Sub Robot Analysis Total 1 | . 1 . Derelict Logs Recovered . | . . . Drone Launches . | . . . Drone Recoveries . | . . . Exploration | -11 -10 -10 ------------- Run | Yrd Mat Sub Turns Passed 2931 | 453 2365 113 Spaces Moved 1528 | 197 1274 57 Core 10 | 10 . . Treads 1518 | 187 1274 57 Legs . | . . . Wheels . | . . . Hover . | . . . Flight . | . . . Fastest Speed 50 | 50 160 160 Average Speed 159 | 154 160 160 Slowest Speed 160 | 160 160 160 Overloaded Moves . | . . . Propulsion Burnouts . | . . . Robots Hopped . | . . . Cave-ins Triggered . | . . . Exploration Rate (%) 38 | 8 100 6 Regions Visited 2 Branch Regions 1 Pre-discovered Areas . | . . . Known Exits Taken . | . . . Unknown Exits Taken 2 | 1 1 . Scrap Searched . | . . . Spaces Dug . | . . . Terrain Destroyed 14 | 4 3 7 Melee . | . . . Projectile . | . . . AOE 14 | 4 3 7 Terrain Rammed . | . . . Walls Destroyed . | . . . Machines Disabled . | . . . Actions | -11 -10 -10 --------- Run | Yrd Mat Sub Total 1775 | 285 1421 69 Wait 46 | 28 17 1 Move 1526 | 196 1273 57 Hop . | . . . Pick Up 29 | 12 17 . Fast Attach . | . . . Attach 11 | 7 1 3 Detach . | . . . Swap 12 | 2 7 3 Drop 6 | . 6 . Fire 145 | 40 100 5 Melee . | . . . Ram . | . . . Kick . | . . . Crush . | . . . Escape Stasis . | . . . Rewire . | . . . Trap . | . . . Miscellaneous . | . . . Route ------- -11/Scrapyard -10/Materials (discovered 6 exits: [*Mat x3] / [*Min x2] / [*Sub]) -10/Subcaves History --------- Turn | Location | Event 18 | -11/Scrapyard | Discovered new exit (range 16) 454 | -11/Scrapyard | Entered Materials 455 | -10/Materials | Build established: Mutant 709 | -10/Materials | Discovered new exit (range 16) 833 | -10/Materials | Discovered new exit (range 3) 879 | -10/Materials | Central database locked down 975 | -10/Materials | Discovered new exit (range 8) 1476 | -10/Materials | Discovered new exit (range 9) 1833 | -10/Materials | Discovered new exit (range 16) 2804 | -10/Materials | Discovered new exit (range 10) 2819 | -10/Materials | Entered Subcaves 2921 | -10/Subcaves | Ambushed by swarm of Subdwellers 2921 | -10/Subcaves | Ambushed by Subdwellers from Twisted Machinery 2921 | -10/Subcaves | Ambushed by Subdwellers from Twisted Machinery 2921 | -10/Subcaves | Ambushed by Subdwellers from Twisted Machinery 2921 | -10/Subcaves | Ambushed by Subdwellers from Twisted Machinery 2921 | -10/Subcaves | Ambushed by Subdwellers from Twisted Machinery 2922 | -10/Subcaves | Core integrity fell below 50% 2930 | -10/Subcaves | Core integrity fell below 20% 2932 | -10/Subcaves | Destroyed by PL-HXM(R) with Subdweller Machine Gun Last Messages --------------- fellow?" 02925_ Lgt. Treads destroyed. 02925_ TE-GPM(h) destroyed. 02927_ Acquired 8 matter. 02927_ VU-GUW(R) destroyed. 02927_ Lgt. Assault Rifle destroyed. 02928_ HE-2GV(g) destroyed. 02928_ F0-E5M(R) affixes Scrap Shield Fragment to Scrap Shield. 02929_ PL-HXM(R) emerges from the Twisted Machinery. 02929_ A thin wall crumbles away, revealing a door. 02929_ SD-570(R) destroyed. 02929_ Grenade Launcher destroyed. 02930_ J3-SRC(g) destroyed. 02931_ EM Pulse Gun destroyed. 02932_ Lgt. Treads destroyed. 02932_ FV-QLF(R) affixes Scrap Shield Fragment to Scrap Shield. Map ----- +----------------------------------------------------+ | | | | | ????????????????????????????????????????? | | ????????????????????????????????????????? | | ????????????????????????????????????????? | | ????????????????????????????????????????? | | ????????????????????????????????????????? | | ????????????????????????????????????????? | | ????????????????????????????????????????? | | ????????????????????????????????????????? | | ????????????????????????????????????????? | | ????????????????????????????????????????? | | ????????????????????????????????????????? | | ????????????????????????????????????????? | | ????????????????????????????????????????? | | ????????????????????????????????????????? | | ????????????????????????"##?????????????? | | ???????????????????????? ##?????????????? | | ???????????????????#### # ?????????????? | | ???????????????????###" # #??????????? | | ??????????????????## ## # ##??????????? | | ?????????????####### < < ##??????????? | | ?????????????# ## # ##??????????? | | ?????????????# %=R ##????????????? | | ?????????????##]RR ### ##????????????? | | ???????????? " R@R! # ###????????????? | | ???????????? #"R=%! ##?????????????? | | ????????????"##&RRR ###?????????????? | | ????????????####!!g #####?????????????? | | ??????????????###%% # ####??????????????? | | ??????????????## * # ###???????????????? | | ??????????????## ##???????????????? | | ??????????????### ###???????????????? | | ??????????????### ###???????????????? | | ??????????????## # ###??????????????? | | ??????????????##### ####?????????????? | | ??????????????##### ########????????? | | ????????????????## #######????????? | | ????????????????## ##????????? | | ????????????????### ##????????? | | ????????????????#### ##????????? | | ?????????????????#### ##????????? | | ????????????????###### ##????????? | | ??????????????####### ###! ##???### ?? | | ??????????????#### ##%& ##???### ?? | | ?????????????### ###&= ##??? # ?? | | ?????????????## ## #!! ##?? ## ? | | ?????????????## "!&%==##### #### | | ?????????????##" ####&[###### ### | | ?????????????##""""""###%% ### ## | +----------------------------------------------------+ Best States ------------- Heat Dissipation 25 Energy Generation 10 Energy Capacity 250 Matter Stores 300 Matter Capacity 300 Sight Range 16 Terrain Scan Range 16 Terrain Scan Density 10 Armor Coverage 150 Core Shielding 20 Evasion (%) 50 Recoil Reduction 2 Item Schematics ----------------- None Robot Schematics ------------------ None Fabricated ------------ Nothing Alien Tech Used ----------------- None Achievements -------------- None Challenges ------------ None Game ------ Seed ReinforcedShadeGreatsword Manual? 0 Play Time 00:20:42 Cumulative 29.2 hours Start 2024.04.29 @ 20:31:33 End 2024.04.29 @ 20:53:22 Sessions 1 Manual Loads 0 Difficulty Rogue Special Mode None Game No. 33 Rogue 28 Adventurer 5 Explorer 0 Win Type - Total 0 Types 0/0/0/0/0/0/0/0/0 Lore% 24 Gallery% 27 Achievement% 22 Wizard Run 0 Options --------- Layout 2 ASCII 0 Keyboard 0 Movement Mouse Keybinds 0 Fullscreen 2 Font 24/Smallcaps Map View 50x44 Zoom Use 0% Tactical HUD 1 Map Filters NONE Filters NONE Steam 1 RUN: e5d67b36-6873-47f6-903c-f0384ee0ffcd